fUSD/lending_fUSD_20250905
["ID","MTS","AMOUNT","RATE_DAILY","PERIOD"]
[383773803,1757110259664,-400.0,0.00038082,10]
[383773804,1757110259675,-647.03,0.00038082,10]
[383773805,1757110259686,-656.12,0.00038082,10]
[383773806,1757110259696,-400.0,0.00038082,10]
[383773807,1757110259706,-400.0,0.00038082,10]
[383773808,1757110259715,-400.0,0.00038082,10]
[383773809,1757110259725,-400.0,0.00038082,10]
[383773810,1757110259736,-610.42,0.00038082,10]
[383773811,1757110259745,-400.0,0.00038082,10]
[383773812,1757110259756,-400.0,0.00038082,10]
[383773813,1757110259765,-400.0,0.00038082,10]
[383773814,1757110259775,-400.0,0.00038082,10]
[383773815,1757110259784,-400.0,0.00038082,10]
[383773816,1757110259794,-400.0,0.00038082,10]
[383773817,1757110259804,-400.0,0.00038082,10]
[383773818,1757110259813,-400.0,0.00038082,10]
[383773819,1757110259823,-400.0,0.00038082,10]
[383773820,1757110259834,-585.76,0.00038082,10]
[383773821,1757110259843,-400.0,0.00038082,10]
[383773822,1757110259855,-400.0,0.00038082,10]
[383773823,1757110259864,-400.0,0.00038082,10]
[383773824,1757110259875,-3134.44,0.00038082,5]
[383773825,1757110259886,-400.0,0.00038082,10]
[383773826,1757110259896,-400.0,0.00038082,10]
[383773827,1757110259906,-400.0,0.00038082,10]
[383773828,1757110259916,-400.0,0.00038082,10]
[383773829,1757110259926,-400.0,0.00038082,10]
[383773830,1757110259935,-400.0,0.00038082,10]
[383773831,1757110259945,-400.0,0.00038082,10]
[383773832,1757110259954,-404.05,0.00038082,10]
[383773833,1757110259964,-400.0,0.00038082,10]
[383773834,1757110259973,-406.77408515,0.00038082,10]
[383773835,1757110259983,-478.22,0.00038082,10]
[383773836,1757110259993,-400.0,0.00038082,10]
[383773837,1757110260003,-400.0,0.00038082,10]
[383773838,1757110260012,-400.0,0.00038082,10]
[383773839,1757110260022,-400.0,0.00038082,10]
[383773840,1757110260031,-555.03,0.00038082,10]
[383773841,1757110260041,-522.98,0.00038082,10]
[383773842,1757110260051,-400.0,0.00038082,10]
[383773843,1757110260061,-400.0,0.00038082,10]
[383773844,1757110260071,-400.0,0.00038082,10]
[383773845,1757110260082,-400.0,0.00038082,10]
[383773846,1757110260091,-400.0,0.00038082,10]
[383773847,1757110260101,-400.0,0.00038082,10]
[383773848,1757110260110,-400.0,0.00038082,10]
[383773849,1757110260120,-400.0,0.00038082,10]
[383773850,1757110260130,-400.0,0.00038082,10]
[383773851,1757110260140,-617.32,0.00038082,10]
[383773852,1757110260150,-400.0,0.00038082,10]
[383773853,1757110260159,-190.39934844,0.00038082,10]
[383773854,1757110260168,-400.0,0.00038082,10]
[383773855,1757110260178,-400.0,0.00038082,10]
[383773856,1757110260187,-896.9,0.00038082,10]
[383773857,1757110260197,-520.03,0.00038082,10]
[383773858,1757110260206,-400.0,0.00038082,10]
[383773859,1757110260216,-558.4,0.00038082,10]
[383773860,1757110260225,-649.24,0.00038082,10]
[383773861,1757110260235,-400.0,0.00038082,10]
[383773862,1757110260245,-614.37,0.00038082,10]
[383773863,1757110260255,-1000.0,0.00038082,10]
[383773864,1757110260264,-538.02,0.00038082,10]
[383773865,1757110260274,-437.77,0.00038082,10]
[383773866,1757110260283,-556.89,0.00038082,10]
[383773867,1757110260293,-474.27,0.00038082,10]
[383773868,1757110260304,-400.0,0.00038082,10]
[383773869,1757110260318,-439.12,0.00038082,10]
[383773870,1757110260331,-415.35,0.00038082,10]
[383773871,1757110260342,-400.0,0.00038082,10]
[383773872,1757110260353,-815.21,0.00038082,10]
[383773873,1757110260365,-789.73,0.00038082,10]
[383773874,1757110260376,-520.84,0.00038082,10]
[383773875,1757110260386,-400.0,0.00038082,10]
[383773876,1757110260398,-406.06,0.00038082,10]
[383773877,1757110260408,-400.0,0.00038082,10]
[383773878,1757110260418,-400.0,0.00038082,10]
[383773879,1757110260427,-734.64,0.00038082,10]
[383773880,1757110260436,-400.0,0.00038082,10]
[383773881,1757110260445,-400.0,0.00038082,10]
[383773882,1757110260455,-400.0,0.00038082,10]
[383773883,1757110260466,-400.0,0.00038082,10]
[383773884,1757110260477,-400.0,0.00038082,10]
[383773885,1757110260486,-400.0,0.00038082,10]
[383773886,1757110260495,-400.0,0.00038082,10]
[383773887,1757110260506,-545.69,0.00038082,10]
[383773888,1757110260516,-316.94,0.00038082,10]
[383773889,1757110260526,-3990.88,0.00038082,10]
[383773890,1757110260536,-425.1,0.00038082,10]
[383773891,1757110260546,-400.0,0.00038082,10]
[383773892,1757110260557,-715.64,0.00038082,10]
[383773893,1757110260569,-1117.99,0.00038082,10]
[383773894,1757110260579,-400.0,0.00038082,10]
[383773895,1757110260591,-436.28,0.00038082,10]
[383773896,1757110260601,-400.0,0.00038082,10]
[383773897,1757110260610,-466.46,0.00038082,10]
[383773898,1757110260619,-420.62,0.00038082,10]
[383773899,1757110260629,-400.0,0.00038082,10]
[383773900,1757110260638,-444.51,0.00038082,10]
[383773901,1757110260647,-168.19,0.00038085,2]
[383773902,1757110260656,-150.0,0.0003816,2]
[383773903,1757110260667,-150.0,0.0003816,2]
[383773904,1757110260677,-150.0,0.0003816,2]
[383773905,1757110260687,-150.0,0.0003816,2]
[383773906,1757110260697,-150.0,0.0003816,2]
[383773907,1757110260706,-2035.0,0.00038274,2]
[383773908,1757110260716,-1258.0,0.00038274,2]
[383773909,1757110260726,-3382.0,0.00038274,2]
[383773910,1757110260736,-924.0,0.00038274,2]
[383773911,1757110260746,-600.0,0.00038274,2]
[383773912,1757110260755,-1300.0,0.00038274,2]
[383773913,1757110260765,-1577.0,0.00038274,2]
[383773914,1757110260776,-567.0,0.00038274,2]
[383773915,1757110260786,-811.0,0.00038274,2]
[383773916,1757110260795,-1708.0,0.00038275,20]
[383773917,1757110260804,-400.0,0.00038356,10]
[383773918,1757110260814,-400.0,0.00038356,10]
[383773919,1757110260823,-400.0,0.00038356,10]
[383773920,1757110260833,-409.54,0.00038356,10]
[383773921,1757110260843,-400.0,0.00038356,10]
[383773922,1757110260853,-400.0,0.00038356,10]
[383773923,1757110260863,-400.0,0.00038356,10]
[383773924,1757110260873,-647.03,0.00038356,10]
[383773925,1757110260883,-656.12,0.00038356,10]
[383773926,1757110260893,-400.0,0.00038356,10]
[383773927,1757110260903,-400.0,0.00038356,10]
[383773928,1757110260914,-400.0,0.00038356,10]
[383773929,1757110260923,-400.0,0.00038356,10]
[383773930,1757110260933,-610.42,0.00038356,10]
[383773931,1757110260942,-400.0,0.00038356,10]
[383773932,1757110260952,-400.0,0.00038356,10]
[383773933,1757110260962,-400.0,0.00038356,10]
[383773934,1757110260971,-400.0,0.00038356,10]
[383773935,1757110260980,-400.0,0.00038356,10]
[383773936,1757110260991,-400.0,0.00038356,10]
[383773937,1757110261002,-400.0,0.00038356,10]
[383773938,1757110261013,-400.0,0.00038356,10]
[383773939,1757110261023,-585.76,0.00038356,10]
[383773940,1757110261033,-400.0,0.00038356,10]
[383773941,1757110261043,-400.0,0.00038356,10]
[383773942,1757110261052,-400.0,0.00038356,10]
[383773943,1757110261063,-3134.44,0.00038356,5]
[383773944,1757110261072,-400.0,0.00038356,10]
[383773945,1757110261082,-400.0,0.00038356,10]
[383773946,1757110261091,-400.0,0.00038356,10]
[383773947,1757110261309,-400.0,0.00038356,10]
[383773948,1757110261321,-247.39587817,0.00038356,10]
[383773949,1757110261331,-400.0,0.00038356,10]
[383773950,1757110261340,-400.0,0.00038356,10]
[383773951,1757110261350,-404.05,0.00038356,10]
[383773952,1757110261360,-400.0,0.00038356,10]
[383773953,1757110261369,-478.22,0.00038356,10]
[383773954,1757110261378,-400.0,0.00038356,10]
[383773955,1757110261388,-400.0,0.00038356,10]
[383773956,1757110261397,-400.0,0.00038356,10]
[383773957,1757110261407,-400.0,0.00038356,10]
[383773958,1757110261416,-555.03,0.00038356,10]
[383773959,1757110261425,-522.98,0.00038356,10]
[383773960,1757110261435,-305.26319044,0.00038356,10]
[383773961,1757110261444,-400.0,0.00038356,10]
[383773962,1757110261453,-400.0,0.00038356,10]
[383773963,1757110261462,-400.0,0.00038356,10]
[383773964,1757110261471,-400.0,0.00038356,10]
[383773965,1757110261481,-400.0,0.00038356,10]
[383773966,1757110261490,-400.0,0.00038356,10]
[383773967,1757110261499,-394.73080567,0.00038356,10]
[383773968,1757110261508,-617.32,0.00038356,10]
[383773969,1757110261517,-400.0,0.00038356,10]
[383773970,1757110261526,-400.0,0.00038356,10]
[383773971,1757110261535,-400.0,0.00038356,10]
[383773972,1757110261543,-896.9,0.00038356,10]
[383773973,1757110261552,-520.03,0.00038356,10]
[383773974,1757110261561,-400.0,0.00038356,10]
[383773975,1757110261570,-558.4,0.00038356,10]
[383773976,1757110261579,-649.24,0.00038356,10]
[383773977,1757110261588,-400.0,0.00038356,10]
[383773978,1757110261598,-614.37,0.00038356,10]
[383773979,1757110261608,-1000.0,0.00038356,10]
[383773980,1757110261617,-538.02,0.00038356,10]
[383773981,1757110261627,-437.77,0.00038356,10]
[383773982,1757110261636,-556.89,0.00038356,10]
[383773983,1757110261646,-474.27,0.00038356,10]
[383773984,1757110261655,-400.0,0.00038356,10]
[383773985,1757110261664,-439.12,0.00038356,10]
[383773986,1757110261674,-415.35,0.00038356,10]
[383773987,1757110261683,-400.0,0.00038356,10]
[383773988,1757110261693,-815.21,0.00038356,10]
[383773989,1757110261703,-789.73,0.00038356,10]
[383773990,1757110261712,-520.84,0.00038356,10]
[383773991,1757110261721,-400.0,0.00038356,10]
[383773992,1757110261730,-406.06,0.00038356,10]
[383773993,1757110261739,-516.94871722,0.00038356,10]
[383773994,1757110261749,-406.69312204,0.00038356,10]
[383773995,1757110261758,-734.64,0.00038356,10]
[383773996,1757110261767,-400.0,0.00038356,10]
[383773997,1757110261777,-400.0,0.00038356,10]
[383773998,1757110261786,-400.0,0.00038356,10]
[383773999,1757110261796,-400.0,0.00038356,10]
[383774000,1757110261806,-400.0,0.00038356,10]
[383774001,1757110261815,-400.0,0.00038356,10]
[383774002,1757110261825,-400.0,0.00038356,10]
[383774003,1757110261835,-545.69,0.00038356,10]
[383774004,1757110261845,-3990.88,0.00038356,10]
[383774005,1757110261855,-425.1,0.00038356,10]
[383774006,1757110261865,-400.0,0.00038356,10]
[383774007,1757110261874,-715.64,0.00038356,10]
[383774008,1757110261884,-1117.99,0.00038356,10]
[383774009,1757110261894,-400.0,0.00038356,10]
[383774010,1757110261903,-436.28,0.00038356,10]
[383774011,1757110261913,-400.0,0.00038356,10]
[383774012,1757110261922,-466.46,0.00038356,10]
[383774013,1757110261931,-420.62,0.00038356,10]
[383774014,1757110261942,-400.0,0.00038356,10]
[383774015,1757110261952,-444.51,0.00038356,10]
[383774016,1757110261962,-623.89,0.000384,14]
[383774017,1757110261972,-150.0,0.00038434,2]
[383774018,1757110261982,-150.0,0.00038434,2]
[383774019,1757110261992,-400.0,0.0003863,10]
[383774020,1757110262003,-400.0,0.0003863,10]
[383774021,1757110262012,-400.0,0.0003863,10]
[383774022,1757110262022,-409.54,0.0003863,10]
[383774023,1757110262032,-400.0,0.0003863,10]
[383774024,1757110262041,-400.0,0.0003863,10]
[383774025,1757110262051,-400.0,0.0003863,10]
[383774026,1757110262060,-647.03,0.0003863,10]
[383774027,1757110262070,-656.12,0.0003863,10]
[383774028,1757110262080,-400.0,0.0003863,10]
[383774029,1757110262090,-400.0,0.0003863,10]
[383774030,1757110262101,-400.0,0.0003863,10]
[383774031,1757110262111,-610.42,0.0003863,10]
[383774032,1757110262122,-400.0,0.0003863,10]
[383774033,1757110262132,-400.0,0.0003863,10]
[383774034,1757110262142,-400.0,0.0003863,10]
[383774035,1757110262154,-400.0,0.0003863,10]
[383774036,1757110262163,-400.0,0.0003863,10]
[383774037,1757110262173,-400.0,0.0003863,10]
[383774038,1757110262183,-279.25984096,0.0003863,10]
[383774039,1757110262194,-400.0,0.0003863,10]
[383774040,1757110262204,-585.76,0.0003863,10]
[383774041,1757110262216,-400.0,0.0003863,10]
[383774042,1757110262227,-400.0,0.0003863,10]
[383774043,1757110262236,-400.0,0.0003863,10]
[383774044,1757110262246,-3134.44,0.0003863,5]
[383774045,1757110262257,-400.0,0.0003863,10]
[383774046,1757110262268,-400.0,0.0003863,10]
[383774047,1757110262279,-400.0,0.0003863,10]
[383774048,1757110262288,-400.0,0.0003863,10]
[383774049,1757110262298,-400.0,0.0003863,10]
[383774050,1757110262308,-400.0,0.0003863,10]
[383774051,1757110262321,-404.05,0.0003863,10]
[383774052,1757110262332,-400.0,0.0003863,10]
[383774053,1757110262343,-478.22,0.0003863,10]
[383774054,1757110262354,-400.0,0.0003863,10]
[383774055,1757110262364,-400.0,0.0003863,10]
[383774056,1757110262374,-400.0,0.0003863,10]
[383774057,1757110262384,-400.0,0.0003863,10]
[383774058,1757110262394,-555.03,0.0003863,10]
[383774059,1757110262406,-522.98,0.0003863,10]
[383774060,1757110262416,-400.0,0.0003863,10]
[383774061,1757110262426,-400.0,0.0003863,10]
[383774062,1757110262435,-400.0,0.0003863,10]
[383774063,1757110262445,-400.0,0.0003863,10]
[383774064,1757110262455,-400.0,0.0003863,10]
[383774065,1757110262464,-400.0,0.0003863,10]
[383774066,1757110262473,-617.32,0.0003863,10]
[383774067,1757110262482,-400.0,0.0003863,10]
[383774068,1757110262492,-400.0,0.0003863,10]
[383774069,1757110262501,-400.0,0.0003863,10]
[383774070,1757110262510,-896.9,0.0003863,10]
[383774071,1757110262520,-520.03,0.0003863,10]
[383774072,1757110262530,-400.0,0.0003863,10]
[383774073,1757110262539,-558.4,0.0003863,10]
[383774074,1757110262550,-649.24,0.0003863,10]
[383774075,1757110262561,-400.0,0.0003863,10]
[383774076,1757110262573,-614.37,0.0003863,10]
[383774077,1757110262583,-1000.0,0.0003863,10]
[383774078,1757110262595,-538.02,0.0003863,10]
[383774079,1757110262606,-437.77,0.0003863,10]
[383774080,1757110262615,-556.89,0.0003863,10]
[383774081,1757110262625,-474.27,0.0003863,10]
[383774082,1757110262634,-400.0,0.0003863,10]
[383774083,1757110262644,-439.12,0.0003863,10]
[383774084,1757110262654,-415.35,0.0003863,10]
[383774085,1757110262666,-400.0,0.0003863,10]
[383774086,1757110262677,-815.21,0.0003863,10]
[383774087,1757110262687,-789.73,0.0003863,10]
[383774088,1757110262698,-520.84,0.0003863,10]
[383774089,1757110262709,-400.0,0.0003863,10]
[383774090,1757110262720,-406.06,0.0003863,10]
[383774091,1757110262730,-734.64,0.0003863,10]
[383774092,1757110262742,-543.34,0.0003863,10]
[383774093,1757110262755,-400.0,0.0003863,10]
[383774094,1757110262765,-400.0,0.0003863,10]
[383774095,1757110262776,-400.0,0.0003863,10]
[383774096,1757110262787,-400.0,0.0003863,10]
[383774097,1757110262798,-400.0,0.0003863,10]
[383774098,1757110262807,-400.0,0.0003863,10]
[383774099,1757110262818,-545.69,0.0003863,10]
[383774100,1757110262828,-3990.88,0.0003863,10]
[383774101,1757110262839,-425.1,0.0003863,10]
[383774102,1757110262849,-400.0,0.0003863,10]
[383774103,1757110262860,-715.64,0.0003863,10]
[383774104,1757110262870,-1117.99,0.0003863,10]
[383774105,1757110262880,-400.0,0.0003863,10]
[383774106,1757110262892,-436.28,0.0003863,10]
[383774107,1757110262904,-400.0,0.0003863,10]
[383774108,1757110262913,-466.46,0.0003863,10]
[383774109,1757110262924,-420.62,0.0003863,10]
[383774110,1757110262934,-400.0,0.0003863,10]
[383774111,1757110262944,-444.51,0.0003863,10]
[383774112,1757110262954,-1708.0,0.0003865,20]
[383774113,1757110262965,-150.0,0.00038708,2]
[383774114,1757110262976,-200.0,0.00038708,2]
[383774115,1757110262987,-500.0,0.00038893,2]
[383774116,1757110262997,-500.0,0.00038893,10]
[383774117,1757110263007,-176.42544333,0.00038893,20]
[383774118,1757110263017,-1100.0,0.000389,14]
[383774119,1757110263027,-400.0,0.00038904,10]
[383774120,1757110263038,-400.0,0.00038904,10]
[383774121,1757110263048,-400.0,0.00038904,10]
[383774122,1757110263058,-409.54,0.00038904,10]
[383774123,1757110263068,-249.35505936,0.00038904,10]
[383774124,1757110263078,-400.0,0.00038904,10]
[383774125,1757110263088,-400.0,0.00038904,10]
[383774126,1757110263098,-647.03,0.00038904,10]
[383774127,1757110263107,-656.12,0.00038904,10]
[383774128,1757110263118,-400.0,0.00038904,10]
[383774129,1757110263129,-400.0,0.00038904,10]
[383774130,1757110263139,-400.0,0.00038904,10]
[383774131,1757110263149,-610.42,0.00038904,10]
[383774132,1757110263159,-400.0,0.00038904,10]
[383774133,1757110263169,-400.0,0.00038904,10]
[383774134,1757110263179,-400.0,0.00038904,10]
[383774135,1757110263189,-400.0,0.00038904,10]
[383774136,1757110263199,-400.0,0.00038904,10]
[383774137,1757110263209,-400.0,0.00038904,10]
[383774138,1757110263219,-400.0,0.00038904,10]
[383774139,1757110263228,-585.76,0.00038904,10]
[383774140,1757110263238,-400.0,0.00038904,10]
[383774141,1757110263248,-400.0,0.00038904,10]
[383774142,1757110263259,-400.0,0.00038904,10]
[383774143,1757110263269,-3134.44,0.00038904,5]
[383774144,1757110263279,-400.0,0.00038904,10]
[383774145,1757110263289,-400.0,0.00038904,10]
[383774146,1757110263298,-400.0,0.00038904,10]
[383774147,1757110263309,-400.0,0.00038904,10]
[383774148,1757110263321,-400.0,0.00038904,10]
[383774149,1757110263332,-400.0,0.00038904,10]
[383774150,1757110263342,-404.05,0.00038904,10]
[383774151,1757110263352,-400.0,0.00038904,10]
[383774152,1757110263363,-478.22,0.00038904,10]
[383774153,1757110263375,-525.93,0.00038904,10]
[383774154,1757110263386,-400.0,0.00038904,10]
[383774155,1757110263397,-400.0,0.00038904,10]
[383774156,1757110263408,-284.9552227,0.00038904,10]
[383774157,1757110263417,-555.03,0.00038904,10]
[383774158,1757110263428,-522.98,0.00038904,10]
[383774159,1757110263438,-400.0,0.00038904,10]
[383774160,1757110263448,-400.0,0.00038904,10]
[383774161,1757110263458,-400.0,0.00038904,10]
[383774162,1757110263467,-400.0,0.00038904,10]
[383774163,1757110263477,-617.32,0.00038904,10]
[383774164,1757110263486,-400.0,0.00038904,10]
[383774165,1757110263496,-400.0,0.00038904,10]
[383774166,1757110263506,-400.0,0.00038904,10]
[383774167,1757110263516,-896.9,0.00038904,10]
[383774168,1757110263525,-404.82873512,0.00038904,10]
[383774169,1757110263535,-520.03,0.00038904,10]
[383774170,1757110263545,-558.4,0.00038904,10]
[383774171,1757110263555,-649.24,0.00038904,10]
[383774172,1757110263565,-400.0,0.00038904,10]
[383774173,1757110263575,-614.37,0.00038904,10]
[383774174,1757110263585,-1000.0,0.00038904,10]
[383774175,1757110263595,-538.02,0.00038904,10]
[383774176,1757110263605,-437.77,0.00038904,10]
[383774177,1757110263615,-556.89,0.00038904,10]
[383774178,1757110263626,-474.27,0.00038904,10]
[383774179,1757110263636,-400.0,0.00038904,10]
[383774180,1757110263647,-439.12,0.00038904,10]
[383774181,1757110263657,-415.35,0.00038904,10]
[383774182,1757110263668,-400.0,0.00038904,10]
[383774183,1757110263678,-815.21,0.00038904,10]
[383774184,1757110263688,-789.73,0.00038904,10]
[383774185,1757110263698,-520.84,0.00038904,10]
[383774186,1757110263708,-400.0,0.00038904,10]
[383774187,1757110263718,-406.06,0.00038904,10]
[383774188,1757110263728,-734.64,0.00038904,10]
[383774189,1757110263738,-400.0,0.00038904,10]
[383774190,1757110263748,-400.0,0.00038904,10]
[383774191,1757110263758,-400.0,0.00038904,10]
[383774192,1757110263768,-400.0,0.00038904,10]
[383774193,1757110263778,-400.0,0.00038904,10]
[383774194,1757110263788,-423.04870213,0.00038904,10]
[383774195,1757110263798,-545.69,0.00038904,10]
[383774196,1757110263808,-3990.88,0.00038904,10]
[383774197,1757110263818,-425.1,0.00038904,10]
[383774198,1757110263828,-467.6234552,0.00038904,10]
[383774199,1757110263839,-715.64,0.00038904,10]
[383774200,1757110263850,-1117.99,0.00038904,10]
[383774201,1757110263861,-400.0,0.00038904,10]
[383774202,1757110263871,-436.28,0.00038904,10]
[383774203,1757110263883,-400.0,0.00038904,10]
[383774204,1757110263893,-466.46,0.00038904,10]
[383774205,1757110263903,-420.62,0.00038904,10]
[383774206,1757110263914,-400.0,0.00038904,10]
[383774207,1757110263925,-444.51,0.00038904,10]
[383774208,1757110263934,-179.16,0.0003898,2]
[383774209,1757110263945,-150.0,0.00038982,2]
[383774210,1757110263954,-218.31,0.00039,30]
[383774211,1757110263964,-801.77,0.00039069,2]
[383774212,1757110263975,-400.0,0.00039178,10]
[383774213,1757110263985,-400.0,0.00039178,10]
[383774214,1757110263995,-400.0,0.00039178,10]
[383774215,1757110264005,-409.54,0.00039178,10]
[383774216,1757110264016,-400.0,0.00039178,10]
[383774217,1757110264026,-400.0,0.00039178,10]
[383774218,1757110264036,-647.03,0.00039178,10]
[383774219,1757110264046,-656.12,0.00039178,10]
[383774220,1757110264056,-400.0,0.00039178,10]
[383774221,1757110264067,-400.0,0.00039178,10]
[383774222,1757110264077,-400.0,0.00039178,10]
[383774223,1757110264087,-610.42,0.00039178,10]
[383774224,1757110264097,-400.0,0.00039178,10]
[383774225,1757110264107,-400.0,0.00039178,10]
[383774226,1757110264117,-400.0,0.00039178,10]
[383774227,1757110264128,-400.0,0.00039178,10]
[383774228,1757110264140,-400.0,0.00039178,10]
[383774229,1757110264150,-400.0,0.00039178,10]
[383774230,1757110264160,-544.35,0.00039178,10]
[383774231,1757110264171,-585.76,0.00039178,10]
[383774232,1757110264181,-400.0,0.00039178,10]
[383774233,1757110264191,-400.0,0.00039178,10]
[383774234,1757110264201,-512.83776661,0.00039178,10]
[383774235,1757110264210,-3134.44,0.00039178,5]
[383774236,1757110264221,-400.0,0.00039178,10]
[383774237,1757110264231,-400.0,0.00039178,10]
[383774238,1757110264241,-400.0,0.00039178,10]
[383774239,1757110264251,-400.0,0.00039178,10]
[383774240,1757110264261,-400.0,0.00039178,10]
[383774241,1757110264273,-400.0,0.00039178,10]
[383774242,1757110264283,-404.05,0.00039178,10]
[383774243,1757110264294,-516.6,0.00039178,10]
[383774244,1757110264304,-478.22,0.00039178,10]
[383774245,1757110264316,-400.0,0.00039178,10]
[383774246,1757110264331,-400.0,0.00039178,10]
[383774247,1757110264342,-555.03,0.00039178,10]
[383774248,1757110264353,-522.98,0.00039178,10]
[383774249,1757110264362,-400.0,0.00039178,10]
[383774250,1757110264374,-400.0,0.00039178,10]
[383774251,1757110264384,-400.0,0.00039178,10]
[383774252,1757110264395,-400.0,0.00039178,10]
[383774253,1757110264405,-617.32,0.00039178,10]
[383774254,1757110264416,-400.0,0.00039178,10]
[383774255,1757110264426,-400.0,0.00039178,10]
[383774256,1757110264437,-400.0,0.00039178,10]
[383774257,1757110264449,-896.9,0.00039178,10]
[383774258,1757110264460,-520.03,0.00039178,10]
[383774259,1757110264472,-558.4,0.00039178,10]
[383774260,1757110264485,-649.24,0.00039178,10]
[383774261,1757110264495,-400.0,0.00039178,10]
[383774262,1757110264505,-614.37,0.00039178,10]
[383774263,1757110264517,-1000.0,0.00039178,10]
[383774264,1757110264528,-538.02,0.00039178,10]
[383774265,1757110264539,-437.77,0.00039178,10]
[383774266,1757110264550,-556.89,0.00039178,10]
[383774267,1757110264560,-474.27,0.00039178,10]
[383774268,1757110264570,-400.0,0.00039178,10]
[383774269,1757110264581,-439.12,0.00039178,10]
[383774270,1757110264592,-415.35,0.00039178,10]
[383774271,1757110264602,-400.0,0.00039178,10]
[383774272,1757110264612,-815.21,0.00039178,10]
[383774273,1757110264623,-789.73,0.00039178,10]
[383774274,1757110264632,-520.84,0.00039178,10]
[383774275,1757110264643,-400.0,0.00039178,10]
[383774276,1757110264655,-406.06,0.00039178,10]
[383774277,1757110264666,-734.64,0.00039178,10]
[383774278,1757110264676,-400.0,0.00039178,10]
[383774279,1757110264687,-400.0,0.00039178,10]
[383774280,1757110264698,-400.0,0.00039178,10]
[383774281,1757110264708,-400.0,0.00039178,10]
[383774282,1757110264718,-400.0,0.00039178,10]
[383774283,1757110264729,-545.69,0.00039178,10]
[383774284,1757110264741,-3990.88,0.00039178,10]
[383774285,1757110264752,-425.1,0.00039178,10]
[383774286,1757110264764,-715.64,0.00039178,10]
[383774287,1757110264775,-1117.99,0.00039178,10]
[383774288,1757110264986,-400.0,0.00039178,10]
[383774289,1757110264996,-436.28,0.00039178,10]
[383774290,1757110265006,-400.0,0.00039178,10]
[383774291,1757110265016,-466.46,0.00039178,10]
[383774292,1757110265027,-420.62,0.00039178,10]
[383774293,1757110265037,-400.0,0.00039178,10]
[383774294,1757110265047,-444.51,0.00039178,10]
[383774295,1757110265057,-3052.0,0.00039338,120]
[383774296,1757110265067,-400.0,0.00039452,10]
[383774297,1757110265077,-400.0,0.00039452,10]
[383774298,1757110265087,-400.0,0.00039452,10]
[383774299,1757110265097,-409.54,0.00039452,10]
[383774300,1757110265107,-400.0,0.00039452,10]
[383774301,1757110265116,-400.0,0.00039452,10]
[383774302,1757110265127,-647.03,0.00039452,10]